fUST/lending_fUST_20250805
["ID","MTS","AMOUNT","RATE_DAILY","PERIOD"]
[377296196,1754323858944,-2784.48,0.00035342,2]
[377296198,1754323858954,-460.0,0.00035342,2]
[377296200,1754323858964,-267.07,0.00035342,2]
[377296202,1754323858974,-1157.1921196,0.00035495,30]
[377296203,1754323858984,-306.0,0.00035495,30]
[377296205,1754323858994,-306.0,0.00035505,30]
[377296207,1754323859003,-151.0,0.00035616,14]
[377296209,1754323859015,-151.0,0.00035616,14]
[377296211,1754323859024,-151.0,0.00035616,14]
[377296213,1754323859034,-151.0,0.00035616,14]
[377296215,1754323859043,-151.0,0.00035616,14]
[377296217,1754323859053,-460.0,0.00035616,2]
[377296219,1754323859063,-1512.55,0.00035616,2]
[377296221,1754323859073,-460.0,0.00035616,2]
[377296223,1754323859082,-460.0,0.00035616,2]
[377296224,1754323859091,-460.0,0.00035616,2]
[377296226,1754323859101,-460.0,0.00035616,2]
[377296228,1754323859113,-460.0,0.00035616,2]
[377296230,1754323859122,-1050.99,0.00035616,2]
[377296232,1754323859132,-820.27,0.00035616,2]
[377296234,1754323859141,-8959.07,0.00035616,120]
[377296236,1754323859150,-460.0,0.00035616,2]
[377296238,1754323859159,-1143.66,0.00035616,2]
[377296240,1754323859169,-460.0,0.00035616,2]
[377296242,1754323859178,-460.0,0.00035616,2]
[377296244,1754323859187,-460.0,0.00035616,2]
[377296246,1754323859197,-369.61,0.00035616,2]
[377296247,1754323859207,-918.49,0.00035616,2]
[377296248,1754323859215,-738.75,0.00035616,2]
[377296249,1754323859224,-460.0,0.00035616,2]
[377296250,1754323859234,-2512.82,0.00035616,2]
[377296251,1754323859243,-460.0,0.00035616,2]
[377296252,1754323859253,-5056.98,0.00035616,2]
[377296253,1754323859264,-460.0,0.00035616,2]
[377296254,1754323859274,-469.37,0.00035616,2]
[377296255,1754323859284,-1009.46,0.00035616,2]
[377296256,1754323859293,-1467.56,0.00035616,2]
[377296257,1754323859303,-460.0,0.00035616,2]
[377296258,1754323859317,-460.0,0.00035616,2]
[377296259,1754323859325,-460.0,0.00035616,2]
[377296260,1754323859337,-460.0,0.00035616,2]
[377296261,1754323859351,-460.0,0.00035616,2]
[377296262,1754323859361,-577.95,0.00035616,2]
[377296263,1754323859370,-5649.48,0.00035616,2]
[377296264,1754323859380,-460.0,0.00035616,2]
[377296265,1754323859390,-2207.42,0.00035616,2]
[377296266,1754323859399,-1745.33,0.00035616,2]
[377296267,1754323859409,-2784.48,0.00035616,2]
[377296268,1754323859418,-460.0,0.00035616,2]
[377296269,1754323859428,-160.0,0.00035798,14]
[377296270,1754323859440,-325.0,0.00035798,14]
[377296271,1754323859449,-288.54,0.000358,2]
[377296272,1754323859459,-460.0,0.0003589,2]
[377296273,1754323859469,-1512.55,0.0003589,2]
[377296274,1754323859479,-460.0,0.0003589,2]
[377296275,1754323859489,-460.0,0.0003589,2]
[377296276,1754323859498,-460.0,0.0003589,2]
[377296277,1754323859509,-460.0,0.0003589,2]
[377296278,1754323859518,-460.0,0.0003589,2]
[377296279,1754323859528,-1050.99,0.0003589,2]
[377296280,1754323859537,-820.27,0.0003589,2]
[377296281,1754323859547,-386.79,0.0003589,2]
[377296282,1754323859557,-1143.66,0.0003589,2]
[377296283,1754323859567,-441.21,0.0003589,2]
[377296284,1754323859577,-460.0,0.0003589,2]
[377296285,1754323859586,-460.0,0.0003589,2]
[377296286,1754323859596,-918.49,0.0003589,2]
[377296287,1754323859605,-738.75,0.0003589,2]
[377296288,1754323859615,-460.0,0.0003589,2]
[377296289,1754323859624,-2512.82,0.0003589,2]
[377296290,1754323859633,-460.0,0.0003589,2]
[377296291,1754323859642,-5056.98,0.0003589,2]
[377296292,1754323859652,-437.15482372,0.0003589,2]
[377296293,1754323859662,-1009.46,0.0003589,2]
[377296294,1754323859671,-469.37,0.0003589,2]
[377296295,1754323859681,-1467.56,0.0003589,2]
[377296296,1754323859690,-460.0,0.0003589,2]
[377296297,1754323859700,-460.0,0.0003589,2]
[377296298,1754323859710,-460.0,0.0003589,2]
[377296299,1754323859719,-460.0,0.0003589,2]
[377296300,1754323859729,-203.09,0.0003589,2]
[377296301,1754323859739,-577.95,0.0003589,2]
[377296302,1754323859749,-5649.48,0.0003589,2]
[377296303,1754323859759,-409.42,0.0003589,2]
[377296304,1754323859768,-2207.42,0.0003589,2]
[377296305,1754323859778,-1745.33,0.0003589,2]
[377296306,1754323859788,-460.0,0.0003589,2]
[377296307,1754323859797,-2784.48,0.0003589,2]
[377296308,1754323859807,-15000.0,0.000359,14]
[377296309,1754323859817,-644.0,0.000359,2]
[377296310,1754323859826,-200.0,0.00035958,120]
[377296311,1754323859836,-461.05335821,0.00036,3]
[377296312,1754323859846,-460.0,0.00036164,2]
[377296313,1754323859855,-1512.55,0.00036164,2]
[377296314,1754323859865,-460.0,0.00036164,2]
[377296315,1754323859875,-460.0,0.00036164,2]
[377296316,1754323859884,-460.0,0.00036164,2]
[377296317,1754323859895,-268.13,0.00036164,2]
[377296318,1754323859904,-460.0,0.00036164,2]
[377296319,1754323859914,-1050.99,0.00036164,2]
[377296320,1754323859923,-820.27,0.00036164,2]
[377296321,1754323859933,-1143.66,0.00036164,2]
[377296322,1754323859943,-460.0,0.00036164,2]
[377296323,1754323859952,-460.0,0.00036164,2]
[377296324,1754323859962,-918.49,0.00036164,2]
[377296325,1754323859971,-738.75,0.00036164,2]
[377296326,1754323859981,-442.73,0.00036164,2]
[377296327,1754323859992,-2512.82,0.00036164,2]
[377296328,1754323860004,-460.0,0.00036164,2]
[377296329,1754323860015,-5056.98,0.00036164,2]
[377296330,1754323860024,-1009.46,0.00036164,2]
[377296331,1754323860035,-469.37,0.00036164,2]
[377296332,1754323860044,-1467.56,0.00036164,2]
[377296333,1754323860055,-460.0,0.00036164,2]
[377296334,1754323860064,-344.17,0.00036164,2]
[377296335,1754323860074,-460.0,0.00036164,2]
[377296336,1754323860084,-460.0,0.00036164,2]
[377296337,1754323860094,-577.95,0.00036164,2]
[377296338,1754323860111,-5649.48,0.00036164,2]
[377296339,1754323860121,-2207.42,0.00036164,2]
[377296340,1754323860131,-1745.33,0.00036164,2]
[377296341,1754323860140,-460.0,0.00036164,2]
[377296342,1754323860150,-2784.48,0.00036164,2]
[377296343,1754323860159,-4772.28,0.000362,14]
[377296344,1754323860169,-236.63696,0.000362,120]
[377296345,1754323860178,-200.0,0.00036211,15]
[377296346,1754323860188,-200.0,0.00036211,15]
[377296347,1754323860198,-200.0,0.00036211,15]
[377296348,1754323860209,-240.0,0.00036211,15]
[377296349,1754323860219,-200.0,0.0003625,43]
[377296350,1754323860228,-162.10139,0.00036324,120]
[377296351,1754323860237,-460.0,0.00036438,2]
[377296352,1754323860247,-1512.55,0.00036438,2]
[377296353,1754323860257,-460.0,0.00036438,2]
[377296354,1754323860267,-460.0,0.00036438,2]
[377296355,1754323860278,-435.94,0.00036438,2]
[377296356,1754323860287,-460.0,0.00036438,2]
[377296357,1754323860297,-1050.99,0.00036438,2]
[377296358,1754323860307,-820.27,0.00036438,2]
[377296359,1754323860322,-1143.66,0.00036438,2]
[377296360,1754323860331,-460.0,0.00036438,2]
[377296361,1754323860342,-460.0,0.00036438,2]
[377296362,1754323860351,-918.49,0.00036438,2]
[377296363,1754323860362,-738.75,0.00036438,2]
[377296364,1754323860372,-2512.82,0.00036438,2]
[377296365,1754323860382,-460.0,0.00036438,2]
[377296366,1754323860396,-5056.98,0.00036438,2]
[377296367,1754323860406,-1009.46,0.00036438,2]
[377296369,1754323860416,-469.37,0.00036438,2]
[377296370,1754323860426,-1467.56,0.00036438,2]
[377296371,1754323860436,-460.0,0.00036438,2]
[377296372,1754323860445,-460.0,0.00036438,2]
[377296373,1754323860455,-460.0,0.00036438,2]
[377296374,1754323860464,-577.95,0.00036438,2]
[377296375,1754323860474,-5649.48,0.00036438,2]
[377296376,1754323860483,-2207.42,0.00036438,2]
[377296377,1754323860492,-1745.33,0.00036438,2]
[377296378,1754323860501,-460.0,0.00036438,2]
[377296379,1754323860511,-2784.48,0.00036438,2]
[377296380,1754323860522,-2200.74,0.000365,7]
[377296381,1754323860532,-560.71,0.000365,7]
[377296382,1754323860543,-1000.0,0.00036711,7]
[377296383,1754323860553,-151.0,0.00036712,14]
[377296384,1754323860565,-151.0,0.00036712,14]
[377296385,1754323860575,-151.0,0.00036712,14]
[377296386,1754323860584,-151.0,0.00036712,14]
[377296387,1754323860594,-460.0,0.00036712,2]
[377296388,1754323860604,-1512.55,0.00036712,2]
[377296389,1754323860613,-460.0,0.00036712,2]
[377296390,1754323860623,-460.0,0.00036712,2]
[377296391,1754323860633,-402.33,0.00036712,2]
[377296392,1754323860642,-1050.99,0.00036712,2]
[377296393,1754323860652,-820.27,0.00036712,2]
[377296394,1754323860661,-1143.66,0.00036712,2]
[377296395,1754323860671,-460.0,0.00036712,2]
[377296396,1754323860680,-460.0,0.00036712,2]
[377296397,1754323860690,-918.49,0.00036712,2]
[377296398,1754323860699,-738.75,0.00036712,2]
[377296399,1754323860709,-2512.82,0.00036712,2]
[377296400,1754323860719,-553.94,0.00036712,2]
[377296401,1754323860728,-5056.98,0.00036712,2]
[377296402,1754323860738,-1009.46,0.00036712,2]
[377296403,1754323860748,-469.37,0.00036712,2]
[377296404,1754323860757,-1467.56,0.00036712,2]
[377296405,1754323860769,-460.0,0.00036712,2]
[377296406,1754323860778,-460.0,0.00036712,2]
[377296407,1754323860788,-460.0,0.00036712,2]
[377296408,1754323860797,-577.95,0.00036712,2]
[377296409,1754323860807,-5649.48,0.00036712,2]
[377296410,1754323860816,-2207.42,0.00036712,2]
[377296411,1754323860826,-1745.33,0.00036712,2]
[377296412,1754323860836,-460.0,0.00036712,2]
[377296413,1754323860847,-2784.48,0.00036712,2]
[377296414,1754323860857,-2148.0,0.00036727,2]
[377296415,1754323860867,-635.0,0.00036727,2]
[377296416,1754323860877,-970.0,0.00036727,2]
[377296417,1754323860887,-408.0,0.0003673,2]
[377296418,1754323860897,-460.0,0.00036986,2]
[377296419,1754323860906,-1512.55,0.00036986,2]
[377296420,1754323860916,-381.33,0.00036986,2]
[377296421,1754323860926,-460.0,0.00036986,2]
[377296422,1754323860936,-1050.99,0.00036986,2]
[377296423,1754323860946,-820.27,0.00036986,2]
[377296424,1754323860956,-776.83055445,0.00036986,120]
[377296425,1754323861069,-330.89940004,0.00036986,120]
[377296426,1754323861084,-1658.6388436,0.00036986,120]
[377296453,1754323861374,-369.99999999,0.00030271,2]
[377296580,1754323862709,-1452.33495808,0.00030271,2]
[377296582,1754323862721,-324.60751631,0.00030271,2]
[377296584,1754323862733,-47853.05752562,0.00030271,2]
[377296586,1754323862742,-842.05743881,0.00030274,7]
[377296588,1754323862752,-151.0,0.00031545,2]
[377296590,1754323862762,-151.0,0.00031545,2]
[377296592,1754323862772,-151.0,0.00031545,2]
[377296594,1754323862782,-151.0,0.00031545,2]
[377296596,1754323862792,-151.0,0.00031545,2]
[377296598,1754323862801,-151.0,0.00031545,2]
[377296600,1754323862811,-460.0,0.00032876,2]
[377296602,1754323862821,-460.0,0.00032876,2]
[377296604,1754323862830,-460.0,0.0003315,2]
[377296607,1754323862840,-460.0,0.00033972,2]
[377296609,1754323862849,-460.0,0.00034246,2]
[377296611,1754323862859,-58.8863301,0.0003452,2]
[377297490,1754323872385,202.72758837,0.00029915,2]
[377298339,1754323882713,8003.54409874,0.00029973,2]
[377300307,1754323903658,370000.0,0.00029962,2]
[377300374,1754323947999,161.4319093,0.00029973,2]
[377300375,1754323958979,312.16666667,0.00028,3]
[377300379,1754324068196,370000.0,0.00029962,2]
[377300435,1754324256361,-240.49553704,0.00030073,5]
[377300444,1754324355494,19519.00892592,0.00025,2]
[377300445,1754324355554,20000.0,0.00025,2]
[377300446,1754324355615,3136.99107408,0.00025,2]
[377300453,1754324596723,16663.6664993,0.00025204,2]
[377300466,1754324791004,164.431827,0.00013699,2]
[377300467,1754324791209,34.91059962,0.00022505,2]
[377300468,1754324791234,129.52122738,0.00022505,2]
[377300471,1754324825442,176.356009,0.00030037,2]
[377300484,1754324874595,2009.61393218,0.000268,3]
[377300496,1754324894077,432.55034126,0.00030073,7]
[377300497,1754324894980,17251.95849018,0.00026,10]
[377300498,1754324895003,20000.0,0.00026,10]
[377300499,1754324895026,1476.96340701,0.00026,10]
[377300500,1754324895211,198.52760796,0.000125,2]
[377300507,1754324915837,538.27897509,0.00027397,120]
[377300508,1754324915869,483.96982603,0.00024108,120]
[377300509,1754324916201,159.42551364,0.00025,120]
[377300512,1754324923562,302.0,0.00021,2]
[377300519,1754324997854,992.17495999,0.000239,2]
[377300520,1754324998060,992.17495999,0.000289,2]
[377300554,1754325031914,-210.35256253,0.00030182,2]
[377300555,1754325031923,-838.91038425,0.00030192,2]
[377300556,1754325031934,-882.03562025,0.00030192,2]
[377300557,1754325031943,-371.30028167,0.00030273,5]
[377300559,1754325031969,-128.69971833,0.00030273,5]
[377300561,1754325031980,-545.18028167,0.00030281,2]
[377300563,1754325031992,-1054.81971833,0.00030281,2]
[377300565,1754325032001,-187.82,0.00030282,10]
[377300567,1754325032010,-156.51,0.00030282,10]
[377300569,1754325032020,-782.6,0.00030282,10]
[377300572,1754325032029,-300.0,0.0003029,2]
[377300574,1754325032038,-400.0,0.00030291,2]
[377300576,1754325032048,-400.0,0.00030291,2]
[377300578,1754325032057,-400.0,0.00030291,2]
[377300580,1754325032066,-75938.73700987,0.00030292,20]
[377300583,1754325032078,-3347.97649127,0.00030292,20]
[377300658,1754325035437,236.63696,0.000294,120]
[377300682,1754325037766,-516.90149497,0.00030291,2]
[377300684,1754325037776,-159.82404911,0.00030291,2]
[377300686,1754325037786,-500.0,0.00030291,2]
[377300688,1754325037796,-500.0,0.00030291,2]
[377300690,1754325037805,-500.0,0.00030291,2]
[377300692,1754325037815,-500.0,0.00030291,2]
[377300694,1754325037824,-500.0,0.00030291,2]
[377300695,1754325037833,-500.0,0.00030291,2]
[377300697,1754325037842,-500.0,0.00030291,2]
[377300698,1754325037852,-500.0,0.00030291,2]
[377300699,1754325037861,-404.61843471,0.00030291,2]
[377300700,1754325037871,-500.0,0.00030291,2]
[377300701,1754325037881,-500.0,0.00030291,2]
[377300702,1754325037890,-500.0,0.00030291,2]
[377300703,1754325037900,-500.0,0.00030291,2]
[377300704,1754325037909,-500.0,0.00030291,2]
[377300705,1754325037918,-500.0,0.00030291,2]
[377300706,1754325037928,-337.54789694,0.00030291,2]
[377300707,1754325037938,-500.0,0.00030291,2]
[377300708,1754325037947,-500.0,0.00030291,2]
[377300710,1754325037956,-500.0,0.00030291,2]
[377300711,1754325037966,-500.0,0.00030291,2]
[377300713,1754325037975,-500.0,0.00030291,2]
[377300715,1754325037986,-500.0,0.00030291,2]
[377300716,1754325037995,-500.0,0.00030291,2]
[377300718,1754325038004,-500.0,0.00030291,2]
[377300720,1754325038014,-500.0,0.00030291,2]
[377300721,1754325038023,-500.0,0.00030291,2]
[377300723,1754325038033,-500.0,0.00030291,2]
[377300725,1754325038042,-500.0,0.00030291,2]
[377300727,1754325038051,-500.0,0.00030291,2]
[377300729,1754325038061,-500.0,0.00030291,2]
[377300731,1754325038071,-59727.72244765,0.00030292,20]
[377300733,1754325038083,-24797.51243871,0.00030292,20]
[377300736,1754325038100,-500.0,0.00030291,2]
[377300738,1754325038109,-1095639.05827165,0.00030292,20]
[377300740,1754325038122,-171949.92708638,0.00030292,20]
[377300834,1754325045994,-500.0,0.00030291,2]
[377300835,1754325046005,-3163.69999999,0.00030292,20]
[377300859,1754325184445,284.422,0.00030136,120]
[377300860,1754325198508,205.340487,0.00029264,120]
[377300861,1754325240637,730.946676,0.00029251,2]
[377300862,1754325264226,-161.4319093,0.00030094,2]
[377300863,1754325264255,-400.0,0.00030193,2]
[377300864,1754325269094,-3001.89424737,0.00030194,2]
[377300865,1754325269278,-2609.25577491,0.00030194,2]
[377300866,1754325269303,-4781.48845018,0.00030194,2]
[377300867,1754325269575,-4717.14719778,0.00030194,2]
[377300868,1754325273277,168.41790488,0.0003019,2]
[377300869,1754325299429,330.72498667,0.00028192,2]
[377300870,1754325315605,66.56271289,0.00030194,2]
[377300871,1754325315627,705.21845482,0.00030194,2]
[377300874,1754325355226,-501.58293631,0.00030273,5]
[377300875,1754325355256,-298.77,0.00030284,3]
[377300876,1754325355285,-1600.0,0.00030288,2]
[377300877,1754325355315,-400.0,0.00030289,2]
[377300878,1754325355344,-400.0,0.00030289,2]
[377300879,1754325355372,-400.0,0.00030289,2]
[377300880,1754325355401,-400.0,0.00030289,2]
[377300881,1754325355431,-399.29412738,0.0003029,2]
[377300882,1754325355584,-1200.70587262,0.0003029,2]
[377300883,1754325355614,-500.0,0.0003029,2]
[377300884,1754325355645,-500.0,0.0003029,2]
[377300885,1754325355677,-500.0,0.0003029,2]
[377300886,1754325355708,-500.0,0.0003029,2]
[377300887,1754325355740,-500.0,0.0003029,2]
[377300888,1754325355769,-500.0,0.0003029,2]
[377300889,1754325355801,-500.0,0.0003029,2]
[377300890,1754325355834,-98.58825476,0.0003029,2]
[377300892,1754325355979,-401.41174524,0.0003029,2]
[377300893,1754325356009,-500.0,0.0003029,2]
[377300894,1754325356040,-500.0,0.0003029,2]
[377300895,1754325356067,-407.64166955,0.0003029,2]
[377300896,1754325356096,-430.0,0.0003029,2]
[377300897,1754325356127,-500.0,0.0003029,2]
[377300898,1754325356157,-500.0,0.0003029,2]
[377300899,1754325356187,-500.0,0.0003029,2]
[377300900,1754325356218,-500.0,0.0003029,2]
[377300901,1754325356250,-549.78543788,0.0003029,2]
[377300902,1754325356461,-500.0,0.0003029,2]
[377300903,1754325356493,-500.0,0.0003029,2]
[377300904,1754325356524,-500.0,0.0003029,2]
[377300905,1754325356555,-500.0,0.0003029,2]
[377300906,1754325356585,-500.0,0.0003029,2]
[377300907,1754325356613,-500.0,0.0003029,2]
[377300908,1754325356642,-500.0,0.0003029,2]
[377300909,1754325356669,-182.35523888,0.0003029,2]
[377300910,1754325356697,-226.78961984,0.0003029,2]
[377300911,1754325356982,-2181.71028256,0.0003029,2]
[377300912,1754325357395,896.31,0.00030284,3]
[377300913,1754325379975,150.0,0.00030291,2]
[377300914,1754325424294,500.0,0.00030273,5]
[377300916,1754325547760,4090.26943488,0.00030194,2]
[377300917,1754325547784,10000.0,0.00030194,2]
[377300918,1754325547808,10000.0,0.00030194,2]
[377300919,1754325547832,10000.0,0.00030194,2]
[377300920,1754325547856,10000.0,0.00030194,2]
[377300921,1754325547884,10000.0,0.00030194,2]
[377300922,1754325547907,10000.0,0.00030194,2]
[377300923,1754325547931,10000.0,0.00030194,2]
[377300924,1754325547956,10000.0,0.00030194,2]
[377300925,1754325547979,10000.0,0.00030194,2]
[377300926,1754325548003,10000.0,0.00030194,2]
[377300927,1754325548025,10000.0,0.00030194,2]
[377300928,1754325548048,10000.0,0.00030194,2]
[377300929,1754325548071,10000.0,0.00030194,2]
[377300930,1754325548094,10000.0,0.00030194,2]
[377300931,1754325548118,10000.0,0.00030194,2]
[377300932,1754325548141,10000.0,0.00030194,2]
[377300933,1754325548166,10000.0,0.00030194,2]
[377300934,1754325548188,10000.0,0.00030194,2]
[377300935,1754325548213,10000.0,0.00030194,2]
[377300936,1754325548236,10000.0,0.00030194,2]
[377300937,1754325548259,10000.0,0.00030194,2]
[377300938,1754325548282,9294.78154518,0.00030194,2]
[377300939,1754325548305,10000.0,0.00030194,2]
[377300940,1754325548330,10000.0,0.00030194,2]
[377300941,1754325548355,10000.0,0.00030194,2]
[377300942,1754325548380,10000.0,0.00030194,2]
[377300943,1754325548406,10000.0,0.00030194,2]
[377300944,1754325548429,10000.0,0.00030194,2]
[377300945,1754325548452,10000.0,0.00030194,2]
[377300946,1754325548476,10000.0,0.00030194,2]
[377300947,1754325548498,10000.0,0.00030194,2]
[377300948,1754325548520,10000.0,0.00030194,2]
[377300949,1754325548543,10000.0,0.00030194,2]
[377300950,1754325548565,10000.0,0.00030194,2]
[377300951,1754325548587,10000.0,0.00030194,2]
[377300952,1754325548609,10000.0,0.00030194,2]
[377300953,1754325548631,6614.94901994,0.00030194,2]
[377300954,1754325564096,3385.05098006,0.00029293,2]
[377300955,1754325564118,10000.0,0.00029293,2]
[377300956,1754325564140,10000.0,0.00029293,2]
[377300957,1754325564161,1514.94901994,0.00029293,2]
[377300958,1754325568006,8485.05098006,0.0002,2]
[377300959,1754325568028,10000.0,0.0002,2]
[377300960,1754325568052,1714.94901994,0.0002,2]
[377300961,1754325584149,221.12,0.00027554,15]
[377300962,1754325584434,221.13,0.00027654,15]
[377300963,1754325595892,675.30852172,0.00030193,2]
[377300964,1754325600519,436.81463838,0.00028192,2]
[377300965,1754325600560,4245.43247802,0.00030194,2]
[377300966,1754325608927,2485.24534194,0.00030201,2]
[377300967,1754325608963,2514.75465806,0.00030201,2]
[377300968,1754325631407,200.0,0.00029626,120]
[377300969,1754325638919,316.56129544,0.00030173,2]
[377300970,1754325713852,6968.6840465,0.00030194,2]
[377300971,1754325713875,10000.0,0.00030194,2]
[377300972,1754325713897,10000.0,0.00030194,2]
[377300973,1754325713921,10000.0,0.00030194,2]
[377300974,1754325713946,10000.0,0.00030194,2]
[377300975,1754325713970,10000.0,0.00030194,2]
[377300976,1754325713994,10000.0,0.00030194,2]
[377300977,1754325714019,10000.0,0.00030194,2]
[377300978,1754325714042,10000.0,0.00030194,2]
[377300979,1754325714066,10000.0,0.00030194,2]
[377300980,1754325714089,10000.0,0.00030194,2]
[377300981,1754325718257,15307.21238905,0.0002699,2]
[377300982,1754325718281,20000.0,0.0002699,2]
[377300983,1754325718307,20000.0,0.0002699,2]
[377300984,1754325718330,20000.0,0.0002699,2]
[377300985,1754325718352,20000.0,0.0002699,2]
[377300986,1754325718374,4692.78761095,0.0002699,2]
[377300987,1754325744008,1890.0,0.00030293,120]
[377300989,1754325802797,4684.8454769,0.00029444,2]
[377300990,1754325851899,164.526161,0.00013699,2]
[377300991,1754325852305,164.526161,0.00022505,2]
[377300993,1754325902079,435.43063487,0.00028192,2]
[377300994,1754325948938,200.0,0.00029161,15]
[377300995,1754326032487,165.95780041,0.00030072,2]
[377300998,1754326093320,327.0,0.00030073,2]
[377300999,1754326123722,205.340487,0.00029173,120]
[377301000,1754326172609,704.24597868,0.00030073,2]
[377301001,1754326202993,500.0,0.00030073,2]
[377301002,1754326203691,386.43434055,0.00028094,2]
[377301067,1754326232189,-181.0,0.00030169,2]
[377301069,1754326232201,-341.0,0.0003017,2]
[377301071,1754326232210,-200.0,0.0003017,2]
[377301073,1754326232220,-400.0,0.0003017,2]
[377301075,1754326232231,-1600.0,0.0003017,2]
[377301077,1754326232240,-830.12,0.0003017,10]
[377301080,1754326232251,-2426.32668243,0.00030171,2]
[377301082,1754326232261,-3070.15214855,0.00030171,2]
[377301084,1754326232271,-1122.0,0.00030172,2]
[377301086,1754326232280,-2426.32668243,0.00030172,2]
[377301088,1754326232290,-3070.15214855,0.00030172,2]
[377301090,1754326232300,-500.0,0.00030173,5]
[377301093,1754326232309,-500.0,0.00030173,5]
[377301095,1754326232319,-500.0,0.00030173,5]
[377301097,1754326232329,-502.37147298,0.00030173,5]
[377301099,1754326232339,-597.54,0.00030173,3]
[377301101,1754326232350,-16984.286777,0.00030174,2]
[377301103,1754326232359,-14957.61686467,0.00030174,2]
[377301105,1754326232372,-318.84,0.00030174,2]
[377301120,1754326232506,-1035.66784917,0.00030174,2]
[377301305,1754326237956,-500.0,0.00030173,2]
[377301307,1754326237966,-500.0,0.00030173,2]
[377301309,1754326237976,-500.0,0.00030173,2]
[377301311,1754326237986,-156.3750634,0.00030173,2]
[377301313,1754326237995,-500.0,0.00030173,2]
[377301315,1754326238005,-597.7814273,0.00030173,2]
[377301317,1754326238015,-500.0,0.00030173,2]
[377301319,1754326238024,-500.0,0.00030173,2]
[377301321,1754326238034,-510.31655891,0.00030173,2]
[377301323,1754326238043,-500.0,0.00030173,2]
[377301325,1754326238052,-500.0,0.00030173,2]
[377301327,1754326238062,-500.0,0.00030173,2]
[377301329,1754326238072,-500.0,0.00030173,2]
[377301331,1754326238081,-500.0,0.00030173,2]
[377301333,1754326238092,-510.31655891,0.00030173,2]
[377301335,1754326238103,-500.0,0.00030173,2]
[377301338,1754326238113,-500.0,0.00030173,2]
[377301340,1754326238122,-500.0,0.00030173,2]
[377301342,1754326238131,-500.0,0.00030173,2]
[377301344,1754326238140,-510.31655891,0.00030173,2]
[377301346,1754326238151,-304.25681926,0.00030173,2]
[377301348,1754326238160,-500.0,0.00030173,2]
[377301350,1754326238170,-500.0,0.00030173,2]
[377301352,1754326238181,-510.31655891,0.00030173,2]
[377301354,1754326238191,-500.0,0.00030173,2]
[377301356,1754326238200,-500.0,0.00030173,2]
[377301358,1754326238210,-510.31655891,0.00030173,2]
[377301360,1754326238220,-396.0433255,0.00030173,2]
[377301361,1754326238230,-500.0,0.00030173,2]
[377301363,1754326238239,-500.0,0.00030173,2]
[377301365,1754326238249,-500.0,0.00030173,2]
[377301367,1754326238259,-510.31655891,0.00030173,2]
[377301370,1754326238270,-500.0,0.00030173,2]
[377301372,1754326238281,-500.0,0.00030173,2]
[377301374,1754326238291,-500.0,0.00030173,2]
[377301376,1754326238305,-500.0,0.00030173,2]
[377301394,1754326238315,-510.31655891,0.00030173,2]
[377301396,1754326238482,-500.0,0.00030173,2]